bitfinex/quotes_BTCUSD_20220304
["timestamp","ask_amount","ask_price","bid_price","bid_amount"]
[1646354283055,0.0118,42344.0,42331.0,0.32220299]
[1646354283454,0.0118,42344.0,42337.0,0.28279626]
[1646354283654,0.361258,42342.0,42331.0,0.32220299]
[1646354283858,0.18974961,42338.0,42331.0,0.32220299]
[1646354284460,0.18974961,42338.0,42326.0,0.177306]
[1646354284461,1.4,42336.0,42326.0,0.177306]
[1646354284657,1.4,42336.0,42322.0,0.086718]
[1646354284658,0.20776008,42330.0,42322.0,0.086718]
[1646354284855,0.20776008,42330.0,42322.0,0.002]
[1646354284856,1.534558,42329.0,42322.0,0.002]
[1646354285054,0.7233,42326.0,42322.0,0.002]
[1646354285256,0.7233,42324.0,42322.0,0.002]
[1646354285456,1.543702,42323.0,42322.0,0.002]
[1646354285656,1.75201704,42323.0,42322.0,0.002]
[1646354285900,1.93908922,42323.0,42322.0,0.002]
[1646354286504,1.93908922,42323.0,42312.0,0.118274]
[1646354286505,0.7233,42321.0,42312.0,0.118274]
[1646354286704,0.361258,42318.0,42312.0,0.118274]
[1646354286904,1.0233,42317.0,42312.0,0.118274]
[1646354287103,0.361258,42316.0,42312.0,0.118274]
[1646354287304,0.1,42315.0,42313.0,0.359136]
[1646354287506,0.1,42315.0,42314.0,0.3]
[1646354287704,0.004,42328.0,42313.0,0.059136]
[1646354287705,0.1,42323.0,42313.0,0.059136]
[1646354287907,0.70804422,42322.0,42306.0,0.0118]
[1646354288104,0.26751263,42310.0,42303.0,0.17741]
[1646354288305,0.16809646,42307.0,42303.0,0.17741]
[1646354289110,0.661258,42306.0,42303.0,0.17741]
[1646354289407,0.1,42305.0,42303.0,0.17741]
[1646354289661,0.361258,42304.0,42303.0,0.17741]
[1646354289860,0.461258,42304.0,42303.0,0.17741]
[1646354290460,0.1,42304.0,42303.0,0.17741]
[1646354291059,0.361258,42308.0,42303.0,0.17741]
[1646354291358,0.361258,42306.0,42303.0,0.17741]
[1646354291558,0.1,42307.0,42303.0,0.17741]
[1646354291763,0.36122,42306.0,42303.0,0.17741]
[1646354292260,0.46122,42305.0,42303.0,0.17741]
[1646354292758,0.3,42304.0,42303.0,0.17741]
[1646354292960,0.66122,42304.0,42303.0,0.17741]
[1646354293302,0.76122,42304.0,42303.0,0.17741]
[1646354293507,0.36122,42303.0,42302.0,0.059152]
[1646354293704,1.18452,42303.0,42300.0,0.0001]
[1646354293904,0.3,42302.0,42300.0,0.0001]
[1646354294106,0.36122,42301.0,42300.0,0.0001]
[1646354294308,0.46122,42301.0,42300.0,0.0001]
[1646354294505,0.1,42301.0,42300.0,0.0001]
[1646354294807,0.006,42305.0,42300.0,0.354843]
[1646354295007,0.006,42305.0,42302.0,0.354723]
[1646354295203,0.006,42305.0,42300.0,0.0001]
[1646354295204,0.006,42305.0,42301.0,0.354731]
[1646354295605,0.006,42305.0,42300.0,0.0001]
[1646354296106,0.006,42305.0,42301.0,0.354731]
[1646354296311,0.006,42305.0,42302.0,0.47106423]
[1646354296506,0.006,42305.0,42302.0,0.37813883]
[1646354296707,0.35687457,42315.0,42302.0,0.37813883]
[1646354296912,0.001,42310.0,42302.0,0.37813883]
[1646354297351,0.001,42310.0,42309.0,0.16280234]
[1646354297551,0.001,42310.0,42302.0,0.2070746]
[1646354297751,0.001,42310.0,42300.0,0.3001]
[1646354297953,0.001,42310.0,42300.0,0.0001]
[1646354298151,0.36122,42314.0,42300.0,0.0001]
[1646354298353,0.1,42313.0,42300.0,0.0001]
[1646354298552,0.36122,42312.0,42300.0,0.16233227]
[1646354298755,0.1,42311.0,42310.0,0.20395498]
[1646354298958,0.16288846,42315.0,42308.0,0.05914]
[1646354298959,0.002,42314.0,42308.0,0.05914]
[1646354299153,0.002,42314.0,42301.0,0.354721]
[1646354299458,0.002,42314.0,42310.0,0.16878517]
[1646354299654,0.002,42314.0,42300.0,0.46233227]
[1646354299655,0.002,42314.0,42311.0,0.354633]
[1646354300055,0.24106253,42321.0,42312.0,0.3487807]
[1646354300254,0.24106253,42321.0,42305.0,0.354679]
[1646354300454,0.17198977,42317.0,42305.0,0.354679]
[1646354300903,0.17198977,42317.0,42306.0,0.36718123]
[1646354301102,0.17198977,42317.0,42307.0,0.01136123]
[1646354301305,0.17198977,42317.0,42308.0,0.23192164]
[1646354301306,0.3,42316.0,42308.0,0.23192164]
[1646354301502,0.3,42316.0,42309.0,0.01183056]
[1646354301701,0.4,42316.0,42305.0,0.01409853]
[1646354301904,0.4,42316.0,42306.0,0.01144431]
[1646354302105,0.4,42316.0,42307.0,0.01378521]
[1646354302303,0.4,42316.0,42308.0,0.01029505]
[1646354302503,0.1,42316.0,42309.0,0.29504778]
[1646354302806,0.004,42316.0,42310.0,0.01463102]
[1646354303005,0.004,42316.0,42312.0,0.01148403]
[1646354303210,0.004,42316.0,42300.0,0.0436]
[1646354303211,1.08452,42315.0,42300.0,0.0001]
[1646354303406,0.3,42314.0,42300.0,0.01319549]
[1646354303604,0.36122,42313.0,42303.0,0.18306953]
[1646354303803,0.4,42312.0,42303.0,0.01406484]
[1646354304205,0.58895753,42312.0,42303.0,0.01406484]
[1646354304962,0.3,42311.0,42303.0,0.01406484]
[1646354305162,0.29395753,42312.0,42303.0,0.01406484]
[1646354305362,0.56291355,42312.0,42303.0,0.01406484]
[1646354305563,0.46291355,42312.0,42304.0,0.27748321]
[1646354305765,0.1,42311.0,42306.0,0.01249302]
[1646354305964,0.1,42311.0,42306.0,0.01398643]
[1646354306265,0.0118,42316.0,42305.0,0.0108791]
[1646354306470,0.059143,42321.0,42306.0,0.36641516]
[1646354306471,0.0118,42320.0,42306.0,0.36641516]
[1646354306665,0.02354,42321.0,42307.0,0.0120182]
[1646354306666,0.0118,42321.0,42307.0,0.0120182]
[1646354306866,0.24212851,42322.0,42313.0,0.28334905]
[1646354307065,0.24212851,42322.0,42313.0,0.34248105]
[1646354307066,0.3,42321.0,42313.0,0.34248105]
[1646354307268,0.19632831,42317.0,42313.0,0.34248105]
[1646354307666,1.0351,42324.0,42313.0,0.34248105]
[1646354307965,0.8233,42323.0,42313.0,0.34248105]
[1646354308166,0.36122,42322.0,42313.0,0.059132]
[1646354308401,1.1233,42321.0,42313.0,0.059132]
[1646354308602,0.17918538,42317.0,42313.0,0.07237186]
[1646354308803,0.36122,42315.0,42313.0,0.059132]
[1646354309005,0.90248538,42317.0,42312.0,0.118263]
[1646354309006,0.36122,42313.0,42312.0,0.118263]
[1646354309202,1.48452,42313.0,42306.0,0.118307]
[1646354309400,0.46122,42312.0,42306.0,0.118307]
[1646354310001,0.36122,42311.0,42306.0,0.118307]
[1646354310301,0.1,42310.0,42306.0,0.118307]
[1646354310501,0.1,42312.0,42306.0,0.118307]
[1646354310702,0.7233,42310.0,42306.0,0.118307]
[1646354310903,0.1,42312.0,42300.0,0.0001]
[1646354310904,1.38452,42309.0,42300.0,0.0001]
[1646354311102,0.36122,42307.0,42300.0,0.0001]
[1646354311300,0.36122,42305.0,42300.0,0.0001]
[1646354311703,0.36122,42303.0,42300.0,0.0001]
[1646354312154,0.1,42304.0,42300.0,0.0001]
[1646354312155,0.1,42302.0,42300.0,0.0001]
[1646354312357,0.36122,42305.0,42300.0,0.0001]
[1646354312654,0.1,42306.0,42300.0,0.0001]
[1646354312856,0.36122,42304.0,42300.0,0.0001]
[1646354313154,0.003,42305.0,42300.0,0.0001]
[1646354313354,0.1,42303.0,42300.0,0.0001]
[1646354314353,0.1,42306.0,42300.0,0.0001]
[1646354314754,0.19278038,42308.0,42300.0,0.0001]
[1646354314958,0.7233,42307.0,42300.0,0.0001]
[1646354315158,0.19278038,42308.0,42300.0,0.0001]
[1646354315159,0.7233,42302.0,42300.0,0.0001]
[1646354315356,3.66e-06,42300.0,42299.0,0.059166]
[1646354315558,0.36122366,42300.0,42299.0,0.059166]
[1646354315813,0.46122366,42300.0,42299.0,0.059166]
[1646354316017,0.61752716,42300.0,42299.0,0.059166]
[1646354316217,1.34082716,42300.0,42299.0,0.059166]
[1646354316813,1.62155863,42300.0,42299.0,0.059166]
[1646354317014,1.62755863,42300.0,42299.0,0.059166]
[1646354317414,1.62755863,42300.0,42291.0,0.001]
[1646354317621,1.08452,42298.0,42291.0,0.001]
[1646354317816,0.7233,42296.0,42291.0,0.001]
[1646354318017,1.08452,42295.0,42291.0,0.001]
[1646354318214,1.08452,42295.0,42293.0,0.118359]
[1646354318415,0.1,42297.0,42293.0,0.118359]
[1646354318416,1.18452,42294.0,42293.0,0.118359]
[1646354318617,1.24198,42294.0,42292.0,0.059178]
[1646354318816,1.08452,42293.0,42291.0,0.001]
[1646354319015,1.35282965,42293.0,42291.0,0.001]
[1646354319213,1.18452,42292.0,42291.0,0.001]
[1646354320259,0.46122,42292.0,42291.0,0.001]
[1646354320656,0.106215,42292.0,42291.0,0.23326073]
[1646354321354,0.106215,42292.0,42291.0,0.001]
[1646354322560,0.01182,42298.0,42291.0,0.37529171]
[1646354322761,3.66e-06,42300.0,42292.0,0.01123925]
[1646354322957,0.002,42297.0,42293.0,0.01451885]
[1646354323157,0.002,42297.0,42294.0,0.37265646]
[1646354323411,0.002,42297.0,42296.0,0.6794326]
[1646354323611,3.66e-06,42300.0,42297.0,1.0644326]
[1646354325008,0.00100366,42300.0,42297.0,1.0644326]
[1646354325412,0.00100366,42300.0,42298.0,0.1183]
[1646354325608,1.084545,42310.0,42299.0,0.01431218]
[1646354325812,0.56146805,42308.0,42299.0,0.31431218]
[1646354326009,0.20022305,42308.0,42298.0,0.4683]
[1646354326209,0.361245,42307.0,42300.0,0.177457]
[1646354326411,0.361245,42307.0,42305.0,0.01391947]
[1646354326610,0.461245,42306.0,42305.0,0.01391947]
[1646354326810,0.461245,42306.0,42304.0,0.059153]
[1646354327048,0.1,42306.0,42304.0,0.059153]
[1646354327448,0.361245,42305.0,42304.0,0.059153]
[1646354327648,0.361245,42307.0,42304.0,0.059153]
[1646354327849,0.1,42309.0,42304.0,0.059153]
[1646354328053,0.0158,42312.0,42304.0,0.059153]
[1646354328054,0.004,42312.0,42304.0,0.059153]
[1646354328249,0.7233,42317.0,42304.0,0.059153]
[1646354328452,0.7233,42317.0,42311.0,0.17884536]
[1646354328648,0.7233,42317.0,42304.0,0.059153]
[1646354328649,0.361245,42317.0,42304.0,0.059153]
[1646354328852,0.20184825,42318.0,42304.0,0.059153]
[1646354329050,0.90296835,42322.0,42306.0,0.0591387]
[1646354329253,0.17966835,42322.0,42306.0,0.3588293]
[1646354329450,0.15477558,42322.0,42306.0,0.102639]
[1646354329649,0.3,42325.0,42310.0,0.18424451]
[1646354330051,0.18364026,42322.0,42314.0,0.27486909]
[1646354330452,0.33841584,42322.0,42307.0,0.05913756]
[1646354330658,0.3,42321.0,42307.0,0.05913756]
[1646354331100,0.34241584,42322.0,42307.0,0.05913756]
[1646354331305,0.64241584,42322.0,42307.0,0.05913756]
[1646354331501,0.1,42321.0,42311.0,0.28963952]
[1646354332802,0.1,42321.0,42312.0,0.059139]
[1646354333209,0.25477558,42322.0,42312.0,0.059139]
[1646354333404,0.97807558,42322.0,42312.0,0.059139]
[1646354333605,0.02354,42319.0,42299.0,0.177457]
[1646354333804,0.7233,42318.0,42299.0,0.177457]
[1646354334003,0.42354,42319.0,42299.0,0.177457]
[1646354334004,0.7233,42316.0,42299.0,0.177457]
[1646354334304,0.20354512,42313.0,42304.0,0.20930062]
[1646354334555,0.3,42312.0,42304.0,0.20930062]
[1646354334756,0.3,42312.0,42304.0,0.26845062]
[1646354335257,0.4,42312.0,42304.0,0.26845062]
[1646354335459,0.1,42312.0,42304.0,0.26845062]
[1646354335657,0.1,42312.0,42305.0,0.361245]
[1646354335861,0.1,42312.0,42308.0,0.059139]
[1646354336256,0.3118,42321.0,42308.0,0.059139]
[1646354336456,0.3118,42321.0,42307.0,0.118276]
[1646354336457,0.7233,42317.0,42307.0,0.118276]
[1646354336757,0.28961153,42314.0,42307.0,0.118276]
[1646354336957,0.3,42313.0,42308.0,0.01492531]
[1646354337158,0.3,42313.0,42309.0,0.01459063]
[1646354337355,0.3,42313.0,42310.0,0.01205675]
[1646354337560,0.33338757,42314.0,42312.0,0.01013164]
[1646354337758,0.361245,42313.0,42308.0,0.01182207]
[1646354337957,0.361245,42313.0,42309.0,0.01483362]
[1646354338159,0.15477558,42314.0,42310.0,0.01417167]
[1646354338418,0.361245,42313.0,42312.0,0.01120371]
[1646354338613,0.361245,42313.0,42308.0,0.01404146]
[1646354338819,0.25477558,42314.0,42309.0,0.01485204]
[1646354339012,0.25477558,42314.0,42310.0,0.01236306]
[1646354339214,0.361245,42313.0,42312.0,0.01383112]
[1646354339414,1.084545,42315.0,42308.0,0.01144766]
[1646354339614,0.7233,42315.0,42309.0,0.01467785]
[1646354339812,0.361245,42313.0,42310.0,0.01049254]
[1646354340013,0.361245,42313.0,42312.0,0.01321891]
[1646354340214,0.361245,42313.0,42308.0,0.01480674]
[1646354340412,0.25477558,42314.0,42309.0,0.01165137]
[1646354340614,0.25477558,42314.0,42310.0,0.014481]
[1646354340814,0.1,42314.0,42307.0,0.118276]
[1646354341018,0.25777558,42314.0,42307.0,0.118276]
[1646354341216,0.003,42314.0,42308.0,0.013681]
[1646354341615,0.003,42314.0,42313.0,0.20423261]
[1646354341818,0.003,42314.0,42312.0,0.059138]
[1646354342256,0.8233,42315.0,42312.0,0.059138]
[1646354342455,0.97807558,42315.0,42312.0,0.059138]
[1646354342654,0.8233,42315.0,42312.0,0.059138]
[1646354342855,0.15477558,42314.0,42312.0,0.059138]
[1646354343060,0.361245,42313.0,42312.0,0.059138]
[1646354343355,0.7293,42320.0,42312.0,0.059138]
[1646354343356,0.15477558,42314.0,42312.0,0.059138]
[1646354343756,0.106,42320.0,42312.0,0.059138]
[1646354344157,0.1,42320.0,42312.0,0.059138]
[1646354344960,0.25477558,42321.0,42312.0,0.059138]
[1646354345822,0.361245,42320.0,42312.0,0.059138]
[1646354346016,0.97807558,42321.0,42312.0,0.059138]
[1646354346017,0.3,42319.0,42312.0,0.059138]
[1646354346518,0.19637638,42316.0,42312.0,0.059138]
[1646354346718,1.084545,42315.0,42312.0,0.059138]
[1646354346918,1.0233,42315.0,42312.0,0.059138]
[1646354347116,0.25477558,42314.0,42312.0,0.059138]
[1646354347515,0.361245,42313.0,42312.0,0.059138]
[1646354347716,0.1,42314.0,42312.0,0.059138]
[1646354347916,0.62320458,42315.0,42312.0,0.059138]
[1646354348318,0.361245,42313.0,42312.0,0.059138]
[1646354348518,0.4,42320.0,42316.0,0.059139]
[1646354348718,1.084545,42319.0,42310.0,0.177412]
[1646354348922,0.368449,42316.0,42310.0,0.177412]
[1646354349118,0.005,42313.0,42310.0,0.177412]
[1646354349319,0.005,42313.0,42311.0,0.059143]
[1646354349554,0.20361073,42319.0,42311.0,0.059143]
[1646354349755,0.361245,42318.0,42311.0,0.059143]
[1646354351566,0.361245,42318.0,42308.0,0.059138]
[1646354351567,0.361245,42316.0,42308.0,0.059138]
[1646354351759,0.361245,42314.0,42307.0,0.059159]
[1646354352060,0.84684,42315.0,42297.0,0.536589]
[1646354352061,0.1,42315.0,42297.0,0.536589]
[1646354352259,0.1,42315.0,42301.0,0.274126]
[1646354352458,0.361245,42314.0,42301.0,0.274126]
[1646354352660,0.1,42315.0,42301.0,0.274126]
[1646354352861,0.159151,42315.0,42301.0,0.274126]
[1646354353061,0.161151,42315.0,42306.0,0.18213031]
[1646354353305,0.361245,42314.0,42306.0,0.18213031]
[1646354353504,0.361245,42314.0,42307.0,0.01277929]
[1646354353705,0.361245,42312.0,42308.0,0.01265292]
[1646354353906,0.361245,42312.0,42306.0,0.18213031]
[1646354353907,0.361245,42312.0,42309.0,0.01497597]
[1646354354110,0.361245,42312.0,42310.0,0.01252311]
[1646354354306,0.361245,42312.0,42309.0,0.059147]
[1646354354507,0.1,42313.0,42303.0,0.11829]
[1646354354708,0.361245,42312.0,42303.0,0.11829]
[1646354354908,0.361245,42314.0,42303.0,0.11829]
[1646354355110,0.004,42312.0,42303.0,0.11829]
[1646354355910,0.361245,42311.0,42303.0,0.11829]
[1646354356109,0.004,42312.0,42303.0,0.11829]
[1646354356311,0.059151,42315.0,42303.0,0.11829]
[1646354356531,0.361245,42314.0,42307.0,0.059146]
[1646354356715,0.059151,42315.0,42308.0,0.3]
[1646354356716,0.33856422,42315.0,42308.0,0.3]
[1646354356912,0.1,42317.0,42308.0,0.118276]
[1646354356913,0.33856422,42317.0,42308.0,0.118276]
[1646354358562,0.69980922,42316.0,42308.0,0.118276]
[1646354358762,0.361245,42315.0,42308.0,0.118276]
[1646354358963,0.361245,42315.0,42308.0,0.120276]
[1646354359164,0.33856422,42315.0,42308.0,0.120276]
[1646354360165,0.33856422,42315.0,42307.0,0.059136]
[1646354360904,0.63856422,42316.0,42308.0,0.20278695]
[1646354361107,0.33856422,42316.0,42308.0,0.26192995]
[1646354361310,0.33856422,42317.0,42308.0,0.26192995]
[1646354361705,0.33856422,42317.0,42308.0,0.20278695]
[1646354362104,0.33856422,42317.0,42312.0,0.059138]
[1646354362306,0.361245,42316.0,42313.0,0.059139]
[1646354362504,0.361245,42316.0,42313.0,0.05322511]
[1646354362906,0.69980922,42316.0,42313.0,0.05322511]
[1646354363104,0.34356422,42316.0,42313.0,0.05322511]
[1646354363706,0.361245,42315.0,42313.0,0.05322511]
[1646354363906,0.34356422,42316.0,42313.0,0.05322511]
[1646354364110,0.005,42316.0,42314.0,0.361245]
[1646354364310,0.14775487,42322.0,42315.0,0.248221]
[1646354364562,0.14775487,42327.0,42317.0,0.361219]
[1646354364759,0.0118,42328.0,42319.0,0.248191]
[1646354364760,0.03514837,42328.0,42319.0,0.248191]
[1646354364954,0.5,42331.0,42327.0,0.26993379]
[1646354365156,0.38668641,42334.0,42328.0,0.21037155]
[1646354365360,0.38768641,42335.0,42329.0,0.01465005]
[1646354365555,0.361245,42334.0,42330.0,0.01014016]
[1646354365759,0.361245,42334.0,42331.0,0.07151176]
[1646354366054,0.001,42335.0,42331.0,0.01240676]
[1646354366254,0.001,42335.0,42332.0,0.059104]
[1646354366454,0.001,42335.0,42330.0,0.118214]
[1646354366955,0.006,42335.0,42331.0,0.059107]
[1646354367160,0.43235807,42332.0,42331.0,0.059107]
[1646354367356,0.361245,42332.0,42330.0,0.118214]
[1646354368421,0.3,42331.0,42330.0,0.118214]
[1646354369519,0.05913,42332.0,42330.0,0.118214]
[1646354369919,0.361245,42331.0,42330.0,0.118214]
[1646354370322,0.19838881,42333.0,42330.0,0.118214]
[1646354370523,0.361245,42332.0,42330.0,0.118214]
[1646354371623,0.006544,42331.0,42330.0,0.118214]
[1646354371824,0.361125,42334.0,42330.0,0.118214]
[1646354372258,0.361125,42332.0,42330.0,0.118214]
[1646354372455,0.006407,42332.0,42330.0,0.118214]
[1646354373055,0.047599,42332.0,42330.0,0.118214]
[1646354374356,0.043599,42332.0,42330.0,0.118214]
[1646354375257,0.361122,42331.0,42330.0,0.118214]
[1646354375561,0.001,42335.0,42330.0,0.118214]
[1646354375562,1.084422,42334.0,42330.0,0.118214]
[1646354376612,0.54734355,42331.0,42330.0,0.118214]
[1646354377612,0.001,42335.0,42330.0,0.118214]
[1646354377815,0.001,42335.0,42330.0,0.33448388]
[1646354378214,0.006415,42338.0,42334.0,0.20838305]
[1646354378414,0.38768641,42341.0,42330.0,0.33448388]
[1646354378614,0.006415,42340.0,42332.0,0.059104]
[1646354379214,0.829715,42340.0,42331.0,0.059106]
[1646354379414,0.006415,42338.0,42331.0,0.34159927]
[1646354380052,0.006415,42338.0,42331.0,0.059106]
[1646354380459,1.11640141,42338.0,42331.0,0.059106]
[1646354380750,1.11640141,42338.0,42330.0,0.118214]
[1646354380751,0.729715,42334.0,42330.0,0.04137401]
[1646354380954,0.729715,42334.0,42321.0,0.13596999]
[1646354380955,0.006415,42331.0,42321.0,0.13596999]
[1646354381253,0.006415,42331.0,42306.0,0.536493]
[1646354381254,0.02354,42324.0,42306.0,0.536493]
[1646354381451,0.79625584,42320.0,42306.0,0.236493]
[1646354381651,0.053715,42319.0,42306.0,0.236493]
[1646354381851,0.053715,42319.0,42306.0,0.42099945]
[1646354382053,0.20663068,42317.0,42306.0,0.42099945]
[1646354382254,0.006415,42316.0,42307.0,0.23398383]
[1646354382653,0.006415,42316.0,42306.0,0.42099945]
[1646354383051,0.009415,42316.0,42306.0,0.42099945]
[1646354383302,0.009415,42316.0,42308.0,0.05915]
[1646354384305,0.006415,42316.0,42308.0,0.05915]
[1646354384505,0.006415,42316.0,42305.0,0.059149]
[1646354384506,0.729715,42316.0,42305.0,0.059149]
[1646354384708,0.1,42315.0,42304.0,0.118298]
[1646354384908,0.006415,42314.0,42304.0,0.118298]
[1646354385106,0.006415,42314.0,42304.0,0.35846598]
[1646354385505,0.006415,42314.0,42304.0,0.118298]
[1646354385907,0.006415,42314.0,42304.0,0.177454]
[1646354386108,0.729715,42314.0,42304.0,0.118298]
[1646354386307,0.729715,42314.0,42304.0,0.28607559]
[1646354386308,0.006415,42312.0,42304.0,0.28607559]
[1646354386807,0.006415,42312.0,42305.0,0.01480155]
[1646354387055,0.006415,42312.0,42304.0,0.28607559]
[1646354387056,0.009415,42312.0,42304.0,0.28607559]
[1646354387256,0.009415,42312.0,42307.0,0.01357661]
[1646354387556,0.009415,42312.0,42309.0,0.0129264]
[1646354387755,0.009415,42312.0,42310.0,0.0122129]
[1646354387960,0.009415,42312.0,42309.0,0.118305]
[1646354388456,0.006415,42312.0,42309.0,0.118305]
[1646354389058,0.009415,42312.0,42309.0,0.118305]
[1646354390062,0.20139912,42310.0,42309.0,0.118305]
[1646354390259,0.20781412,42310.0,42309.0,0.118305]
[1646354391108,0.21081412,42310.0,42309.0,0.118305]
[1646354391704,0.009415,42310.0,42309.0,0.118305]
[1646354392307,0.006415,42310.0,42309.0,0.118305]
[1646354394960,0.006415,42310.0,42308.0,0.059153]
[1646354395162,0.15498312,42311.0,42308.0,0.20193971]
[1646354395362,0.16298312,42315.0,42308.0,0.20193971]
[1646354395762,0.008,42315.0,42308.0,0.20193971]
[1646354395960,0.008,42315.0,42310.0,0.22204631]
[1646354396159,0.008,42315.0,42308.0,0.20193971]
[1646354396359,0.8233,42316.0,42308.0,0.20193971]
[1646354396559,0.006415,42315.0,42308.0,0.26108271]
[1646354396759,0.15498312,42319.0,42308.0,0.20193971]
[1646354397159,0.7233,42319.0,42308.0,0.20193971]
[1646354397362,0.1,42318.0,42308.0,0.20193971]
[1646354397561,0.1,42318.0,42309.0,0.23314396]
[1646354397963,0.006415,42317.0,42307.0,0.059141]
[1646354398163,0.059154,42316.0,42309.0,0.01258616]
[1646354398409,0.006415,42315.0,42310.0,0.01184214]
[1646354398607,0.006415,42315.0,42312.0,0.059151]
[1646354398807,0.006415,42315.0,42312.0,0.13152775]
[1646354399006,0.006415,42315.0,42313.0,0.01004323]
[1646354399207,0.006415,42315.0,42312.0,0.118303]
[1646354399208,0.009415,42315.0,42312.0,0.118303]
[1646354399406,0.068564,42315.0,42312.0,0.118303]
[1646354399609,0.068564,42315.0,42313.0,0.01310904]
[1646354399807,0.068564,42315.0,42312.0,0.118303]
[1646354400206,0.068564,42315.0,42313.0,0.01283731]
[1646354400406,0.068564,42315.0,42314.0,0.01104569]
[1646354400407,0.006415,42315.0,42314.0,0.01104569]
[1646354400606,0.006415,42315.0,42312.0,0.118303]
[1646354401207,0.009415,42315.0,42313.0,0.059152]
[1646354402450,0.006415,42315.0,42313.0,0.059152]
[1646354403252,0.009415,42315.0,42313.0,0.059152]
[1646354404455,0.006415,42315.0,42313.0,0.05907132]
[1646354405056,0.009415,42315.0,42314.0,0.20061803]
[1646354405557,0.009415,42315.0,42313.0,0.05907132]
[1646354406407,0.006415,42315.0,42313.0,0.05907132]
[1646354406607,0.006415,42315.0,42313.0,0.05809637]
[1646354407208,0.009415,42315.0,42309.0,0.059147]
[1646354407410,0.22309137,42314.0,42305.0,0.118303]
[1646354407609,0.006415,42313.0,42305.0,0.118303]
[1646354407810,0.006415,42312.0,42307.0,0.19881996]
[1646354408012,0.006415,42311.0,42305.0,0.118303]
[1646354408212,0.21667637,42314.0,42304.0,0.059148]
[1646354408213,0.006415,42313.0,42304.0,0.059148]
[1646354408413,0.51667637,42314.0,42298.0,0.4151]
[1646354408414,0.006415,42310.0,42298.0,0.4151]
[1646354408613,1.029715,42310.0,42298.0,0.4151]
[1646354409012,0.15498312,42309.0,42301.0,0.2013941]
[1646354409213,0.006415,42308.0,42301.0,0.0118]
[1646354410254,0.006415,42308.0,42301.0,0.17076812]
[1646354410456,0.006415,42308.0,42301.0,0.0118]
[1646354410655,0.006415,42308.0,42305.0,0.28889282]
[1646354411057,0.0118,42314.0,42305.0,0.28889282]
[1646354411257,0.003,42313.0,42306.0,0.37211493]
[1646354411466,0.003,42313.0,42306.0,0.01493726]
[1646354411656,0.003,42313.0,42307.0,0.361126]
[1646354411856,0.003,42313.0,42307.0,0.01104022]
[1646354412059,0.003,42313.0,42310.0,0.059135]
[1646354412258,0.003,42313.0,42312.0,0.361126]
[1646354412459,0.059138,42324.0,42310.0,0.0122825]
[1646354412858,0.21768815,42323.0,42312.0,0.01355322]
[1646354413058,0.21768815,42323.0,42312.0,0.01446008]
[1646354413309,0.21768815,42323.0,42307.0,0.01339568]
[1646354413507,0.061138,42324.0,42309.0,0.23882693]
[1646354413712,0.002,42324.0,42312.0,0.384666]
[1646354413909,0.002,42324.0,42314.0,0.02354]
[1646354414113,0.002,42324.0,42317.0,0.37144943]
[1646354414311,0.3,42330.0,42318.0,0.0113236]
[1646354414511,0.2532875,42331.0,42324.0,0.21206959]
[1646354414711,0.006415,42330.0,42324.0,0.21206959]
[1646354415112,0.3124135,42331.0,42325.0,0.01172523]
[1646354415411,0.006415,42330.0,42325.0,0.01172523]
[1646354416012,0.3124135,42331.0,42325.0,0.01172523]
[1646354416413,0.006415,42330.0,42325.0,0.01172523]
[1646354416619,0.03623879,42331.0,42325.0,0.01172523]
[1646354416815,0.03623879,42331.0,42328.0,0.1824293]
[1646354417067,0.15498312,42338.0,42328.0,0.19481317]
[1646354417257,0.15498312,42338.0,42328.0,0.1824293]
[1646354417258,0.003,42335.0,42328.0,0.1824293]
[1646354417458,0.003,42335.0,42330.0,0.0102852]
[1646354417659,0.003,42335.0,42331.0,0.01145144]
[1646354417858,0.003,42335.0,42331.0,0.24859953]
[1646354418357,0.17388773,42341.0,42331.0,0.01145144]
[1646354418358,0.15598312,42341.0,42331.0,0.01145144]
[1646354418558,0.001,42341.0,42331.0,0.01145144]
[1646354418759,0.006415,42340.0,42331.0,0.01145144]
[1646354418959,0.842536,42341.0,42331.0,0.01145144]
[1646354419160,0.847536,42341.0,42331.0,0.01145144]
[1646354419357,0.27260562,42339.0,42331.0,0.01145144]
[1646354419557,0.88428312,42341.0,42331.0,0.01145144]
[1646354419758,0.20551723,42336.0,42331.0,0.01145144]
[1646354420157,0.20551723,42336.0,42331.0,0.07056344]
[1646354420359,0.45498312,42339.0,42332.0,0.0133339]
[1646354420560,0.15498312,42339.0,42334.0,0.01018086]
[1646354420801,0.15498312,42339.0,42331.0,0.059112]
[1646354420802,0.15498312,42339.0,42335.0,0.01418578]
[1646354421002,0.882417,42340.0,42336.0,0.01194788]
[1646354421206,0.882417,42340.0,42337.0,0.0120448]
[1646354421207,0.15898312,42339.0,42337.0,0.0120448]
[1646354421402,0.19687662,42339.0,42337.0,0.0120448]
[1646354421602,0.35185974,42339.0,42337.0,0.0120448]
[1646354422102,0.35165974,42339.0,42336.0,0.0694229]
[1646354422302,1.07115974,42339.0,42336.0,0.0694229]
[1646354422504,0.15498312,42338.0,42337.0,0.01463769]
[1646354422802,0.19287662,42339.0,42337.0,0.01463769]
[1646354423201,0.78743903,42340.0,42337.0,0.01463769]
[1646354423402,0.48743903,42340.0,42337.0,0.01463769]
[1646354423601,0.78743903,42340.0,42337.0,0.01463769]
[1646354424102,0.7233,42339.0,42337.0,0.01463769]
[1646354424302,0.7233,42339.0,42338.0,0.01351884]
[1646354424560,0.15498312,42339.0,42338.0,0.01351884]
[1646354424959,0.48743903,42340.0,42339.0,0.01049234]
[1646354425156,0.48743903,42340.0,42330.0,0.118224]
[1646354425357,0.3,42339.0,42330.0,0.118224]